bitfinex-derivatives/quotes_ETHF0:USTF0_20241104
["timestamp","ask_amount","ask_price","bid_price","bid_amount"]
[1730680678959,3.57659,2441.3,2441.1,0.3688]
[1730680679150,0.3688,2441.2,2441.0,0.36882]
[1730680679355,3.57659,2441.3,2441.0,0.36883]
[1730680679565,0.3688,2441.2,2441.0,0.36883]
[1730680679759,3.57659,2441.3,2441.0,0.36883]
[1730680680065,0.3688,2441.2,2440.9,0.79313]
[1730680680259,3.93532541,2441.0,2440.6,3.2078]
[1730680680571,0.36886,2440.8,2440.6,3.57668]
[1730680681067,0.36886,2440.8,2440.6,3.2078]
[1730680681254,7.14312541,2441.0,2440.6,3.2078]
[1730680681255,0.36887,2440.7,2440.6,3.2078]
[1730680681452,4.30419541,2440.7,2440.6,3.2078]
[1730680681660,0.36896,2440.1,2440.0,0.2]
[1730680681865,11.61048541,2440.1,2440.0,0.2]
[1730680682069,7.14312541,2440.1,2440.0,0.56898]
[1730680682256,1.311,2440.5,2440.0,0.2]
[1730680682257,7.14312541,2440.4,2440.0,0.2]
[1730680682455,7.51205541,2440.4,2440.1,0.36896]
[1730680682654,7.51205541,2440.4,2440.0,0.56897]
[1730680682655,7.14312541,2440.4,2440.0,0.56897]
[1730680682961,3.93532541,2440.1,2440.0,0.2]
[1730680683153,7.14312541,2440.1,2440.0,0.2]
[1730680683460,7.14312541,2440.1,2438.6,7.37935616]
[1730680683461,0.36912,2439.1,2438.2,0.09229]
[1730680683672,7.14312541,2438.8,2438.7,0.36917]
[1730680683960,3.2078,2438.8,2438.6,0.36918]
[1730680684164,7.14312541,2438.8,2438.1,0.4353]
[1730680684370,7.14312541,2438.5,2438.2,0.36924]
[1730680684558,7.14312541,2438.5,2438.3,0.36923]
[1730680684963,7.14312541,2438.8,2438.4,0.36922]
[1730680685153,7.14312541,2438.8,2438.1,0.4353]
[1730680685358,7.14312541,2438.8,2438.7,0.36917]
[1730680685664,7.14312541,2438.8,2438.6,0.36918]
[1730680686067,7.14312541,2438.8,2438.4,0.36921]
[1730680686068,7.51229541,2438.8,2438.4,0.36921]
[1730680686363,7.14312541,2438.8,2438.3,3.2078]
[1730680686563,7.51224541,2439.1,2438.7,0.36917]
[1730680686758,7.14312541,2439.1,2438.8,0.36915]
[1730680687061,0.4308,2440.0,2439.2,0.36909]
[1730680687062,3.2078,2439.4,2439.2,0.36909]
[1730680687262,3.93532541,2439.6,2439.3,0.36908]
[1730680687459,3.2078,2439.7,2439.5,0.36904]
[1730680687664,3.2078,2439.7,2439.1,3.2078]
[1730680688262,3.2078,2439.7,2439.5,0.36904]
[1730680688461,3.2078,2439.7,2439.1,3.2078]
[1730680688766,3.2078,2440.0,2439.6,0.36904]
[1730680688963,3.2078,2440.0,2439.1,4.13058]
[1730680688964,3.2078,2440.0,2439.7,0.36901]
[1730680689260,3.2078,2440.0,2439.8,0.369]
[1730680689462,3.2078,2440.0,2439.2,0.92275]
[1730680689856,3.2078,2440.0,2439.7,0.36902]
[1730680690467,3.93532541,2440.2,2439.9,0.36898]
[1730680690657,3.2078,2440.3,2439.5,0.92264]
[1730680690858,3.2078,2440.3,2439.9,0.36898]
[1730680690859,3.57674,2440.3,2439.9,0.36898]
[1730680691165,3.2078,2440.3,2439.5,0.8642]
[1730680691459,3.57674,2440.3,2440.0,0.36897]
[1730680691657,3.93532541,2440.5,2439.7,3.2078]
[1730680691859,0.36892,2440.4,2439.8,0.4294]
[1730680692073,3.93532541,2440.2,2439.8,0.4294]
[1730680692265,4.30428541,2440.2,2439.8,0.7984]
[1730680692453,4.30427541,2440.2,2439.9,0.36899]
[1730680692659,3.93532541,2440.2,2439.8,0.4294]
[1730680692862,0.36892,2440.4,2440.1,0.36896]
[1730680693266,4.30423541,2440.5,2439.8,0.4294]
[1730680693461,3.57675,2440.3,2439.9,0.36898]
[1730680693660,3.93532541,2440.2,2439.9,0.36898]
[1730680693859,7.14312541,2440.0,2439.5,0.8642]
[1730680694165,0.36909,2439.3,2439.0,0.36912]
[1730680694365,3.2078,2439.3,2438.8,0.4381]
[1730680694669,3.93532541,2439.4,2439.2,0.3691]
[1730680695072,3.93532541,2439.4,2438.8,0.4381]
[1730680695563,4.30439541,2439.4,2439.1,0.3691]
[1730680696064,7.14312541,2439.6,2438.8,1.36097]
[1730680696271,7.51216541,2439.6,2439.3,0.36907]
[1730680696462,7.51216541,2439.6,2438.8,1.36097]
[1730680696463,7.14312541,2439.6,2438.8,1.36097]
[1730680696769,7.14312541,2439.6,2439.5,0.36905]
[1730680697371,7.14312541,2439.6,2439.4,0.36906]
[1730680697763,7.14312541,2439.6,2439.5,0.36905]
[1730680697963,7.14312541,2439.6,2439.4,0.36906]
[1730680698169,7.14312541,2439.6,2439.5,0.36905]
[1730680698868,7.14312541,2439.6,2439.0,0.92282]
[1730680698869,7.14312541,2439.6,2439.1,0.36911]
[1730680699061,4.30441541,2439.3,2439.0,0.36912]
[1730680699267,4.30441541,2439.3,2438.9,3.2078]
[1730680699268,3.93532541,2439.3,2439.2,0.3691]
[1730680699463,8.03532541,2439.3,2439.2,0.3691]
[1730680699671,3.93532541,2439.3,2439.2,0.3691]
[1730680699876,8.03532541,2439.3,2438.9,3.2078]
[1730680700070,3.93532541,2439.3,2439.1,0.36911]
[1730680700668,0.36907,2439.4,2439.1,0.36911]
[1730680701171,7.14312541,2439.6,2438.9,3.2078]
[1730680701366,7.14312541,2439.6,2439.5,0.36905]
[1730680701770,3.2078,2439.6,2439.5,0.36905]
[1730680702165,4.30432541,2439.9,2439.0,0.92283]
[1730680702166,7.14312541,2439.9,2439.7,0.36901]
[1730680702371,7.14312541,2439.9,2439.8,0.36901]
[1730680702769,7.51211541,2439.9,2439.7,0.36902]
[1730680703174,7.14312541,2439.9,2439.7,0.36902]
[1730680703673,7.51212541,2439.9,2439.6,0.36903]
[1730680703871,7.51212541,2439.9,2439.3,0.8889]
[1730680703872,0.36901,2439.8,2439.3,0.8889]
[1730680704171,3.93532541,2439.6,2438.9,3.2078]
[1730680704369,3.93532541,2439.4,2439.2,0.36909]
[1730680704573,4.30439541,2439.4,2439.1,0.3691]
[1730680704768,3.93532541,2439.4,2438.8,0.894]
[1730680705168,0.36908,2439.3,2439.0,0.36912]
[1730680705370,3.93532541,2439.4,2439.1,0.3691]
[1730680705771,4.30440541,2439.4,2439.1,0.3691]
[1730680705968,3.93532541,2439.4,2439.1,0.3691]
[1730680706271,4.30440541,2439.4,2438.8,0.894]
[1730680706466,7.51220541,2439.4,2439.1,0.3691]
[1730680706663,7.14312541,2439.4,2439.1,0.3691]
[1730680706969,7.14312541,2439.4,2438.8,4.1018]
[1730680706970,4.1,2439.3,2438.8,0.4381]
[1730680707173,3.93532541,2438.9,2438.8,0.4381]
[1730680707474,3.93532541,2438.9,2438.3,0.4248]
[1730680707769,3.93532541,2438.5,2438.1,0.4457]
[1730680708176,0.36923,2438.4,2438.1,0.4457]
[1730680708375,3.93532541,2438.5,2438.1,0.4457]
[1730680708769,3.93532541,2438.5,2438.2,0.36923]
[1730680708970,3.93532541,2438.5,2437.7,0.9233]
[1730680708971,3.93532541,2438.3,2437.6,3.2078]
[1730680709275,4.30460541,2438.0,2437.7,0.36932]
[1730680709472,4.30461541,2438.0,2437.7,0.36932]
[1730680709777,0.3693,2437.9,2437.7,0.36932]
[1730680710275,0.36931,2437.9,2437.6,3.57713]
[1730680710471,0.36932,2437.8,2437.6,3.2078]
[1730680710665,0.36929,2437.9,2437.6,3.57713]
[1730680710865,3.93532541,2438.0,2437.6,3.2078]
[1730680711075,0.36932,2437.7,2437.6,3.2078]
[1730680711275,3.93532541,2438.0,2437.4,0.4457]
[1730680711474,0.36935,2437.5,2437.4,0.4457]
[1730680711677,0.36935,2437.5,2437.2,0.4248]
[1730680711678,3.2078,2437.5,2437.2,0.4248]
[1730680711976,3.93532541,2437.3,2437.0,0.36943]
[1730680712177,0.36941,2437.2,2436.9,0.36944]
[1730680712376,0.36942,2437.1,2436.9,0.36944]
[1730680712676,0.36941,2437.2,2436.9,0.36944]
[1730680713278,3.57721,2437.2,2436.8,0.4506]
[1730680713480,3.2078,2437.5,2436.9,3.2078]
[1730680713879,3.2078,2437.5,2437.3,0.36938]
[1730680714081,3.2078,2437.5,2436.9,3.2078]
[1730680714387,3.57716,2437.5,2437.2,0.36939]
[1730680714779,3.57716,2437.5,2436.9,3.2078]
[1730680714780,3.57716,2437.5,2437.3,0.36938]
[1730680714978,3.2078,2437.8,2437.7,0.36932]
[1730680715275,3.2078,2437.8,2437.2,4.13128]
[1730680715276,3.2078,2437.8,2437.6,0.36933]
[1730680715476,3.2078,2437.8,2437.7,0.36932]
[1730680715776,3.2078,2437.8,2437.0,0.92358]
[1730680715777,3.2078,2437.8,2437.5,0.36934]
[1730680715985,3.57712,2437.8,2437.5,0.36935]
[1730680716277,3.57712,2437.8,2436.8,0.4506]
[1730680716278,0.36943,2437.0,2436.8,0.4506]
[1730680716471,0.36943,2437.0,2436.8,0.82006]
[1730680716673,3.93532541,2437.1,2436.8,0.82006]
[1730680716975,3.93532541,2437.1,2437.0,0.36943]
[1730680717176,3.2078,2437.2,2437.1,0.36942]
[1730680717368,3.93532541,2437.3,2437.2,0.3694]
[1730680717572,3.93532541,2437.3,2436.8,0.4506]
[1730680717573,4.30471541,2437.3,2437.1,0.36941]
[1730680717773,3.93532541,2437.3,2437.1,0.36941]
[1730680718079,3.2078,2437.8,2437.2,7.311]
[1730680718276,3.93532541,2438.2,2437.9,0.36928]
[1730680718277,3.2078,2438.1,2437.9,0.36928]
[1730680718472,3.2078,2438.1,2437.3,1.36514]
[1730680718672,3.2078,2438.1,2437.4,0.4524]
[1730680718877,3.57707,2438.1,2437.4,0.4524]
[1730680719075,3.57707,2438.1,2437.8,0.3693]
[1730680719272,3.57707,2438.1,2437.6,0.36934]
[1730680719273,4.30461541,2437.9,2437.6,0.36934]
[1730680719480,4.30461541,2437.9,2437.5,0.4226]
[1730680719481,3.93532541,2437.9,2437.5,0.4226]
[1730680719673,3.93532541,2437.9,2437.8,0.36931]
[1730680719874,3.57707,2438.1,2437.5,0.4226]
[1730680719875,3.2078,2438.1,2437.6,0.36934]
[1730680720073,3.2078,2438.1,2438.0,0.36928]
[1730680721178,3.2078,2438.4,2438.3,0.36922]
[1730680724276,3.93532541,2438.8,2438.3,7.3086]
[1730680724277,0.36917,2438.8,2438.3,7.3086]
[1730680724476,3.2078,2439.0,2438.4,0.4316]
[1730680724977,5.26032541,2439.1,2438.2,0.36924]
[1730680724978,0.36922,2438.4,2438.2,0.36924]
[1730680725671,3.93532541,2438.6,2438.0,4.5501]
[1730680726086,3.57702,2438.4,2438.0,1.3423]
[1730680726283,3.2078,2438.4,2438.3,0.36923]
[1730680726579,3.2078,2438.4,2438.2,0.36924]
[1730680726883,3.2078,2438.4,2438.3,0.36923]
[1730680729288,4.36252541,2438.8,2438.0,1.3423]
[1730680729289,7.51229541,2438.8,2438.6,0.36918]
[1730680729788,3.2078,2438.8,2438.0,4.5501]
[1730680730087,3.57697,2438.8,2438.6,0.36918]
[1730680730681,3.2078,2438.8,2438.0,5.47327]
[1730680730887,7.14312541,2438.8,2438.0,5.47327]
[1730680731381,3.57696,2438.8,2438.6,0.36918]
[1730680731685,3.57696,2438.8,2438.7,0.36917]
[1730680731686,3.2078,2438.8,2438.7,0.36917]
[1730680732978,3.2078,2439.1,2439.0,0.36911]
[1730680733179,3.2078,2439.1,2438.6,3.2078]
[1730680733375,4.30448541,2438.8,2438.2,0.92311]
[1730680733577,3.93532541,2438.8,2438.3,1.36507]
[1730680733782,0.36915,2438.9,2438.7,0.36916]
[1730680734085,0.36916,2438.9,2438.8,0.36916]
[1730680734280,0.36916,2438.9,2438.3,4.57287]
[1730680734281,7.14312541,2439.1,2438.3,3.6498]
[1730680734488,0.36915,2438.9,2438.7,0.36917]
[1730680734982,0.36915,2438.9,2438.4,1.29227]
[1730680735197,0.36915,2438.9,2438.7,0.36916]
[1730680735781,0.36915,2438.9,2438.3,4.57286]
[1730680735782,0.36915,2438.9,2438.8,0.36916]
[1730680735983,7.14312541,2439.1,2438.3,3.6498]
[1730680736183,1.325,2439.4,2438.3,3.6498]
[1730680736184,0.36922,2438.4,2438.3,0.442]
[1730680736683,0.36922,2438.4,2438.1,0.36925]
[1730680736684,7.14312541,2438.5,2438.0,0.9107]
[1730680736879,7.14312541,2438.5,2438.2,0.36925]
[1730680736880,0.36925,2438.3,2438.2,0.36925]
[1730680737387,7.14312541,2438.5,2438.3,4.73381225]
[1730680737584,0.36928,2438.0,2437.9,0.4233]
[1730680737890,3.93532541,2438.0,2437.7,0.36932]
[1730680738087,3.93532541,2438.0,2437.7,0.36931]
[1730680738088,0.3693,2437.9,2437.7,0.36931]
[1730680738388,0.3693,2437.9,2437.5,0.4259]
[1730680738682,0.3693,2437.9,2437.7,0.36932]
[1730680738885,0.3693,2437.9,2437.5,0.4259]
[1730680739087,0.3693,2437.9,2437.7,0.36932]
[1730680739779,0.3693,2437.9,2437.7,0.36931]
[1730680740081,3.93532541,2438.0,2437.7,0.36931]
[1730680740287,0.36931,2437.9,2437.7,0.36931]
[1730680740679,3.93532541,2438.0,2437.7,0.36931]
[1730680740875,3.93532541,2438.0,2437.5,0.4259]
[1730680741086,0.36932,2437.8,2437.5,0.4259]
[1730680741383,0.36932,2437.8,2437.7,0.36932]
[1730680741584,0.36932,2437.8,2437.5,0.4259]
[1730680741585,0.36934,2437.6,2437.5,0.4259]
[1730680741788,0.36934,2437.6,2437.2,0.3694]
[1730680741789,0.36938,2437.4,2437.2,0.3694]
[1730680741984,0.36939,2437.3,2437.0,0.8711]
[1730680742186,3.2078,2437.6,2437.0,0.8711]
[1730680742187,3.93532541,2437.5,2437.0,0.8711]
[1730680742389,0.36939,2437.3,2437.2,0.36939]
[1730680742688,0.36939,2437.3,2437.0,0.8711]
[1730680742888,0.36939,2437.3,2437.2,0.3694]
[1730680743085,0.36939,2437.3,2437.0,0.8711]
[1730680743086,3.93532541,2437.5,2437.0,0.8711]
[1730680743283,3.93532541,2437.5,2437.1,0.36941]
[1730680743488,3.93532541,2437.5,2437.0,0.4476]
[1730680743680,3.93532541,2437.5,2437.0,0.81703]
[1730680743681,0.36942,2437.1,2437.0,0.81703]
[1730680744082,0.36942,2437.1,2436.9,0.36944]
[1730680744083,4.47262,2437.1,2436.9,0.36944]
[1730680744394,0.36942,2437.1,2436.8,3.2078]
[1730680744592,0.36945,2436.9,2436.8,3.2078]
[1730680744885,7.14312541,2437.3,2436.6,0.82908]
[1730680744886,0.36946,2436.8,2436.6,0.82908]
[1730680745087,3.93532541,2437.0,2436.6,0.4596]
[1730680745280,0.36948,2436.7,2436.6,0.4596]
[1730680745987,0.36948,2436.7,2436.2,0.9011]
[1730680745988,0.36952,2436.5,2436.2,0.36955]
[1730680746192,4.30485541,2436.4,2436.2,0.36955]
[1730680746391,3.93532541,2436.4,2436.1,3.2078]
[1730680746592,3.93532541,2436.4,2436.0,0.4596]
[1730680746593,0.36956,2436.2,2436.0,0.4596]
[1730680747096,3.93532541,2436.2,2435.8,3.2078]
[1730680747287,0.36958,2436.1,2435.8,3.2078]
[1730680747483,0.36959,2436.0,2435.8,3.5774]
[1730680747689,0.3696,2435.9,2435.8,3.2078]
[1730680748188,4.30492541,2435.9,2435.8,3.2078]
[1730680748492,0.36961,2435.8,2435.6,0.36964]
[1730680749098,0.92384,2436.4,2435.5,0.4287]
[1730680749099,7.14312541,2436.5,2436.4,0.36952]
[1730680749292,7.14312541,2436.5,2435.8,3.2078]
[1730680749595,7.51263541,2436.5,2436.3,0.36953]
[1730680749791,3.2078,2436.5,2436.4,0.36952]
[1730680750388,3.2078,2436.5,2436.3,0.36952]
[1730680750588,3.2078,2436.5,2435.9,0.8685]
[1730680750795,3.2078,2436.5,2436.4,0.36952]
[1730680751496,3.93532541,2437.0,2436.9,0.36945]
[1730680751791,3.93532541,2437.0,2436.5,0.4482]
[1730680751792,8.03852541,2437.0,2436.5,0.4482]
[1730680752004,3.93532541,2437.0,2436.9,0.36945]
[1730680753090,3.2078,2437.5,2437.1,0.3694]
[1730680753091,3.93532541,2437.3,2437.1,0.3694]
[1730680753293,3.2078,2437.5,2436.8,3.632]
[1730680753497,3.93532541,2437.3,2436.8,3.632]
[1730680753702,3.93532541,2437.3,2437.2,0.3694]
[1730680755191,3.93532541,2437.8,2437.2,4.1032]
[1730680755392,3.93532541,2437.8,2437.7,0.36932]
[1730680755998,3.93532541,2437.8,2437.5,0.4428]
[1730680756197,3.93532541,2437.8,2437.6,0.36933]
[1730680756503,3.93532541,2437.8,2437.7,0.36932]
[1730680756805,3.93532541,2437.8,2437.6,0.36934]
[1730680756991,7.3102,2437.7,2436.9,3.2078]
[1730680757296,3.93532541,2437.1,2437.0,0.36943]
[1730680760095,3.93532541,2437.4,2437.3,0.36937]
[1730680761504,3.93532541,2437.4,2437.3,0.36939]
[1730680762697,3.93532541,2437.7,2437.2,3.2078]
[1730680762897,4.30465541,2437.7,2437.5,0.36935]
[1730680763100,3.93532541,2437.7,2437.6,0.36934]
[1730680763408,3.93532541,2437.7,2437.2,3.2078]
[1730680763409,3.93532541,2437.9,2437.7,0.36932]
[1730680763701,3.93532541,2437.9,2437.8,0.36931]
[1730680764093,3.93532541,2437.9,2437.4,0.4204]
[1730680764498,0.4319,2438.2,2437.4,0.4204]
[1730680764499,4.36722541,2438.2,2437.5,3.2078]
[1730680764801,3.93532541,2438.2,2438.1,0.36926]
[1730680765001,3.93532541,2438.2,2437.8,3.2078]
[1730680765002,4.30454541,2438.4,2438.2,0.36924]
[1730680765895,4.30455541,2438.4,2438.2,0.36924]
[1730680766296,3.93532541,2438.4,2438.2,0.36924]
[1730680766505,3.93532541,2438.4,2438.0,0.4384]
[1730680766506,3.93532541,2438.4,2438.3,0.36923]
[1730680767207,3.93532541,2438.7,2438.1,0.92317]
[1730680767408,4.30450541,2438.7,2438.5,0.36919]
[1730680767603,3.93532541,2438.7,2438.0,4.56938]
[1730680767796,3.93532541,2438.5,2438.0,0.4384]
[1730680768105,3.93532541,2438.5,2438.1,0.36925]
[1730680768106,0.36923,2438.4,2438.1,0.36925]
[1730680768294,0.36924,2438.3,2438.1,0.36925]
[1730680768795,0.36923,2438.4,2438.2,0.36925]
[1730680768997,3.93532541,2438.5,2438.0,0.4384]
[1730680769208,0.36922,2438.4,2438.2,0.36924]
[1730680769900,3.93532541,2438.5,2438.0,0.4384]
[1730680769901,0.36923,2438.3,2438.0,0.4384]
[1730680770102,0.36923,2438.3,2436.9,2.1495409]
[1730680770103,0.3693,2437.9,2437.7,0.36932]
[1730680770304,7.14312541,2438.2,2437.4,3.2078]
[1730680770305,3.93532541,2438.0,2437.9,0.36928]
[1730680770699,0.36927,2438.1,2437.9,0.36928]
[1730680771600,3.93532541,2438.2,2437.9,0.36928]
[1730680771809,0.36926,2438.1,2437.9,0.36928]
[1730680772109,0.36929,2438.0,2437.7,0.36931]
[1730680772308,7.14312541,2438.2,2437.4,3.2078]
[1730680772509,0.36926,2438.1,2437.8,0.3693]
[1730680772703,4.30461541,2438.0,2437.8,0.3693]
[1730680772909,3.93532541,2438.0,2437.4,3.2078]
[1730680773307,3.93532541,2438.0,2437.8,0.36931]
[1730680773308,4.30461541,2438.0,2437.8,0.36931]
[1730680773515,4.30461541,2438.0,2437.5,0.36935]
[1730680773807,0.3693,2437.9,2437.7,0.36932]
[1730680774823,4.30460541,2438.0,2437.4,3.2078]
[1730680775014,3.93532541,2438.0,2437.9,0.36929]
[1730680775212,0.36927,2438.1,2437.9,0.36929]
[1730680775618,7.14312541,2438.2,2437.7,3.2078]
[1730680775619,3.93532541,2438.2,2437.7,3.2078]
[1730680775819,3.93532541,2438.2,2438.1,0.36926]
[1730680776019,0.36923,2438.4,2438.2,0.36924]
[1730680776220,5.65353541,2438.5,2438.3,0.36923]
[1730680776518,5.65353541,2438.5,2438.2,0.36924]
[1730680776519,3.93532541,2438.5,2438.2,0.36924]
[1730680776717,3.93532541,2438.5,2437.4,3.2078]
[1730680776718,3.2078,2438.3,2437.4,3.2078]
[1730680776921,0.36931,2437.8,2437.6,0.36933]
[1730680777116,0.36931,2437.8,2437.5,0.4427]
[1730680777117,3.93532541,2437.9,2437.7,0.36932]
[1730680777321,4.30462541,2437.9,2437.7,0.36932]
[1730680778623,4.30463541,2437.9,2437.7,0.36932]
[1730680778825,0.36931,2437.8,2437.7,0.36932]
[1730680779027,4.30463541,2437.9,2437.7,0.36932]
[1730680779219,3.93532541,2437.9,2437.5,0.4427]
[1730680779425,0.36934,2437.6,2437.5,0.4427]
[1730680779626,0.36934,2437.6,2437.5,0.81205]
[1730680780013,0.36933,2437.7,2437.6,0.36933]
[1730680780213,0.36933,2437.7,2437.5,0.4427]
[1730680780627,0.36933,2437.7,2437.6,0.36934]
[1730680780821,0.36933,2437.7,2437.5,0.4427]
[1730680781028,0.36933,2437.7,2437.5,0.81204]
[1730680781218,0.36933,2437.7,2437.6,0.36934]
[1730680781925,3.2078,2437.7,2437.2,1.22419]
[1730680782116,0.36939,2437.3,2437.2,0.79229]
[1730680782317,0.3694,2437.2,2437.1,3.6743]
[1730680782714,3.93532541,2437.3,2437.1,3.6743]
[1730680782921,4.30471541,2437.3,2437.2,0.3694]
[1730680783121,4.30469541,2437.5,2437.3,0.36938]
[1730680783324,0.36938,2437.4,2437.2,0.36939]
[1730680783515,4.30469541,2437.5,2437.3,0.36938]
[1730680783714,4.30469541,2437.5,2437.2,0.36939]
[1730680783715,0.36938,2437.4,2437.2,0.36939]
[1730680783928,0.36938,2437.4,2437.1,3.6743]
[1730680784122,3.93532541,2437.5,2437.4,0.36937]
[1730680784323,3.93532541,2437.8,2437.1,3.6743]
[1730680784526,0.36936,2437.5,2437.3,0.36937]
[1730680784727,0.36936,2437.5,2437.4,0.36937]
[1730680785127,7.14312541,2437.8,2437.4,0.36937]
[1730680785327,0.36935,2437.6,2437.4,0.36937]
[1730680785529,7.14312541,2437.8,2437.1,3.6743]
[1730680785829,0.36935,2437.6,2437.4,0.36937]
[1730680786127,0.36936,2437.5,2437.3,0.36937]
[1730680786329,0.36935,2437.6,2437.4,0.36936]
[1730680787430,0.36937,2437.5,2437.3,0.36938]
[1730680787632,0.36937,2437.5,2437.1,0.4665]
[1730680787633,4.30468541,2437.5,2437.1,0.4665]
[1730680788231,4.30468541,2437.5,2437.4,0.36937]
[1730680788628,3.93532541,2437.5,2437.1,0.4665]
[1730680788829,3.93532541,2437.5,2437.3,0.36938]
[1730680789229,3.93532541,2437.5,2437.1,0.4665]
[1730680789230,0.36939,2437.3,2437.2,0.36939]
[1730680790430,3.93532541,2437.5,2437.1,0.4665]
[1730680790626,0.36938,2437.4,2437.3,0.36938]
[1730680791026,4.30468541,2437.5,2437.4,0.36937]
[1730680792029,0.36938,2437.4,2437.3,0.36938]
[1730680792425,3.93532541,2437.5,2437.1,0.4665]
[1730680792732,0.36937,2437.4,2437.3,0.36937]
[1730680793932,0.36937,2437.4,2437.1,0.4665]
[1730680793933,0.36939,2437.3,2437.2,0.36939]
[1730680794131,0.36938,2437.4,2437.3,0.36938]
[1730680795027,3.93532541,2437.5,2437.1,0.4665]
[1730680795433,0.36937,2437.4,2437.3,0.36937]
[1730680795836,3.93532541,2437.5,2437.4,0.36937]
[1730680796039,4.30467541,2437.5,2437.1,0.4665]
[1730680796331,4.30467541,2437.5,2437.4,0.36937]
[1730680796332,3.93532541,2437.5,2437.4,0.36937]
[1730680797126,4.30467541,2437.5,2437.4,0.36937]
[1730680797339,3.93532541,2437.5,2437.4,0.36937]
[1730680797844,4.30467541,2437.5,2437.4,0.36937]
[1730680798631,3.93532541,2437.5,2437.4,0.36937]
[1730680799627,7.14312541,2437.8,2437.1,0.4665]
[1730680799829,0.36935,2437.6,2437.5,0.36935]
[1730680800338,0.36935,2437.5,2437.4,0.36936]
[1730680800936,4.30464541,2437.8,2437.3,1.29286]
[1730680801135,4.30464541,2437.8,2437.5,0.36934]
[1730680801136,0.36934,2437.7,2437.5,0.36934]
[1730680801337,0.36934,2437.7,2437.6,0.36934]
[1730680801730,3.93532541,2437.8,2437.2,1.35681]
[1730680801934,0.36934,2437.6,2437.5,0.36935]
[1730680802136,3.93532541,2437.8,2437.2,1.35681]
[1730680802137,0.36933,2437.7,2437.6,0.36934]
[1730680802634,0.36934,2437.6,2437.5,0.36934]
[1730680802834,3.93532541,2437.8,2437.2,1.35681]
[1730680803036,0.36933,2437.7,2437.6,0.36934]
[1730680803230,3.93532541,2437.8,2437.2,1.35681]
[1730680803431,3.57160326,2438.0,2437.5,3.2078]
[1730680803740,3.20232326,2438.2,2437.6,0.4538]
[1730680804039,3.20232326,2438.2,2437.7,0.8909]
[1730680804336,3.2078,2438.4,2438.3,0.36923]
[1730680804637,0.53645262,2438.7,2437.9,0.92323]
[1730680804638,9.47083496,2438.7,2438.1,3.2078]
[1730680804934,3.20232326,2438.7,2438.4,3.2078]
[1730680805138,3.9455117,2439.1,2438.4,3.2078]
[1730680805139,3.20232326,2438.9,2438.5,0.9053]
[1730680805339,0.36912,2439.1,2438.9,0.36914]
[1730680805530,3.93905425,2439.2,2438.5,1.8283]
[1730680805732,4.30816425,2439.2,2439.0,0.36913]
[1730680805932,4.30816425,2439.2,2439.1,0.4659]
[1730680806133,3.2078,2439.3,2439.1,0.83501]
[1730680806341,3.2078,2439.3,2439.1,0.4659]
[1730680806638,3.2078,2439.3,2439.1,0.83501]
[1730680807143,3.2078,2439.3,2439.2,0.3691]
[1730680807541,3.2078,2439.3,2439.1,0.835]
[1730680807845,3.93905425,2440.0,2439.2,4.1]
[1730680808043,3.93905425,2440.0,2439.3,1.37161]
[1730680808233,3.93905425,2440.0,2439.5,3.2078]
[1730680808433,3.2078,2440.2,2440.1,0.36896]
[1730680808636,3.2078,2440.2,2440.1,4.46736]
[1730680808840,0.36889,2440.6,2440.3,0.36893]
[1730680809135,0.36889,2440.6,2440.1,7.3062]
[1730680809136,3.93905425,2440.8,2440.1,3.2078]
[1730680809341,7.51564425,2441.3,2440.5,0.3689]
[1730680809529,7.51564425,2441.3,2440.9,0.36883]
[1730680809734,7.51564425,2441.3,2440.7,3.2078]
[1730680809735,7.14685425,2441.3,2441.1,0.36881]
[1730680809947,3.2078,2441.3,2440.8,0.4655]
[1730680810331,0.36877,2441.4,2441.1,0.3688]
[1730680810533,3.2078,2441.6,2440.8,0.8924]
[1730680810734,3.93905425,2441.9,2441.1,3.2078]
[1730680810941,3.57648,2442.0,2441.6,0.36873]
[1730680811143,3.93905425,2442.8,2441.8,3.2078]
[1730680811343,3.93905425,2442.8,2441.9,0.4292]
[1730680811532,0.36861,2442.5,2441.9,0.4292]
[1730680811738,0.36863,2442.3,2441.9,0.79789]
[1730680811934,3.2078,2442.6,2442.0,0.36867]
[1730680811935,0.36862,2442.4,2442.0,0.36867]
[1730680812139,7.14685425,2442.5,2442.0,3.2078]
[1730680812341,0.36873,2441.7,2441.4,3.2078]
[1730680812540,0.36873,2441.7,2441.1,0.36881]
[1730680812737,3.2078,2441.9,2441.0,3.637]
[1730680813040,0.36877,2441.4,2441.0,0.4292]
[1730680813241,3.57656,2441.5,2441.0,0.79801]
[1730680813636,3.2078,2441.5,2441.1,0.3688]
[1730680813947,3.2078,2441.5,2441.0,0.4292]
[1730680814447,3.2078,2441.5,2441.1,0.3688]
[1730680814642,0.3687,2441.9,2441.4,0.36876]
[1730680814844,0.36868,2442.0,2441.6,0.36873]
[1730680815049,0.36867,2442.1,2441.2,3.2078]
[1730680815348,7.51550425,2442.2,2441.7,0.36872]
[1730680815666,3.2078,2442.6,2442.1,0.36865]
[1730680815840,3.2078,2442.6,2441.6,3.93905425]
[1730680815841,0.36861,2442.5,2442.0,0.36867]
[1730680816447,3.2078,2442.6,2441.9,0.4287]
[1730680816643,0.36868,2442.0,2441.5,0.36874]
[1730680816841,0.36868,2442.0,2441.3,3.2078]
[1730680816842,0.36866,2442.2,2441.7,0.36871]
[1730680817043,3.93905425,2442.5,2441.6,3.2078]
[1730680817243,3.93905425,2442.5,2441.8,0.3687]
[1730680817443,0.36865,2442.2,2441.8,0.3687]
[1730680817639,0.36865,2442.2,2441.6,3.2078]
[1730680817640,0.36863,2442.3,2441.9,0.36869]
[1730680818254,3.2078,2442.4,2441.6,3.2078]